fUSD/lending_fUSD_20240224
["ID","MTS","AMOUNT","RATE_DAILY","PERIOD"]
[315096470,1708810318649,-509.26,0.00029863,2]
[315096471,1708810318659,-1377.18,0.00029863,2]
[315096472,1708810318668,-500.0,0.00029863,2]
[315096473,1708810318678,-1798.49,0.00029863,2]
[315096474,1708810318689,-1649.33,0.00029863,2]
[315096475,1708810318699,-574.79,0.00029863,2]
[315096476,1708810318708,-500.0,0.00029863,2]
[315096477,1708810318718,-667.98,0.00029863,2]
[315096478,1708810318728,-500.0,0.00029863,2]
[315096479,1708810318737,-500.0,0.00029863,2]
[315096480,1708810318746,-500.0,0.00029863,2]
[315096481,1708810318755,-568.06,0.00029863,2]
[315096482,1708810318765,-500.0,0.00029863,2]
[315096483,1708810318774,-500.0,0.00029863,2]
[315096484,1708810318783,-1086.98,0.00029863,2]
[315096485,1708810318792,-1911.86,0.00029863,2]
[315096486,1708810318802,-1024.22,0.00029863,2]
[315096487,1708810318811,-754.1,0.00029863,2]
[315096488,1708810318820,-500.0,0.00029863,2]
[315096489,1708810318830,-500.0,0.00029863,2]
[315096490,1708810318839,-1211.44,0.00029863,2]
[315096491,1708810318848,-500.0,0.00029863,2]
[315096492,1708810318857,-500.0,0.00029863,2]
[315096493,1708810318866,-2683.79,0.00029863,2]
[315096494,1708810318876,-763.44,0.00029863,2]
[315096495,1708810318885,-761.74,0.00029863,2]
[315096496,1708810318894,-500.0,0.00029863,2]
[315096497,1708810318903,-500.0,0.00029863,2]
[315096498,1708810318913,-3791.77,0.00029863,2]
[315096499,1708810318922,-500.0,0.00029863,2]
[315096500,1708810318933,-500.0,0.00029863,2]
[315096501,1708810318942,-558.0,0.00029863,2]
[315096502,1708810318952,-656.92,0.00029863,2]
[315096503,1708810318962,-500.0,0.00029863,2]
[315096504,1708810318972,-650.49,0.00029863,2]
[315096505,1708810318982,-10336.27,0.00029863,2]
[315096506,1708810318991,-1232.51,0.00029863,2]
[315096507,1708810319002,-759.92,0.00029863,2]
[315096508,1708810319011,-530.65,0.00029863,2]
[315096509,1708810319021,-500.0,0.00029863,2]
[315096510,1708810319030,-500.0,0.00029863,2]
[315096511,1708810319039,-1623.45,0.00029863,2]
[315096512,1708810319049,-869.76,0.00029863,2]
[315096513,1708810319058,-2066.73,0.00029863,2]
[315096514,1708810319068,-500.0,0.00029863,2]
[315096515,1708810319078,-2785.74,0.00029863,2]
[315096516,1708810319087,-713.18,0.00029863,2]
[315096517,1708810319096,-282.10545037,0.00029863,2]
[315096518,1708810319105,-500.0,0.00029863,2]
[315096519,1708810319114,-1087.52,0.00029863,2]
[315096520,1708810319124,-769.16,0.00029863,2]
[315096521,1708810319133,-794.25,0.00029863,2]
[315096522,1708810319142,-5728.28,0.00029863,2]
[315096523,1708810319151,-1094.48,0.00029863,2]
[315096524,1708810319160,-500.0,0.00029863,2]
[315096525,1708810319169,-950.08,0.00029863,2]
[315096526,1708810319179,-500.0,0.00029863,2]
[315096527,1708810319189,-4776.88,0.00029863,2]
[315096528,1708810319198,-1104.7,0.00029863,2]
[315096529,1708810319207,-500.0,0.00029863,2]
[315096530,1708810319222,-787.59,0.00029863,2]
[315096531,1708810319231,-1722.68,0.00029863,2]
[315096532,1708810319241,-1079.64,0.00029863,2]
[315096533,1708810319251,-500.0,0.00029863,2]
[315096534,1708810319261,-500.0,0.00029863,2]
[315096535,1708810319270,-500.0,0.00029863,2]
[315096536,1708810319280,-500.0,0.00029863,2]
[315096537,1708810319289,-500.0,0.00029863,2]
[315096538,1708810319299,-545.78,0.00029863,2]
[315096539,1708810319308,-500.0,0.00029863,2]
[315096540,1708810319317,-870.54,0.00029863,2]
[315096541,1708810319328,-1404.99,0.00029863,2]
[315096542,1708810319337,-500.0,0.00029863,2]
[315096543,1708810319346,-500.0,0.00029863,2]
[315096544,1708810319356,-500.0,0.00029863,2]
[315096545,1708810319365,-540.96,0.00029863,2]
[315096546,1708810319375,-663.68,0.00029863,2]
[315096547,1708810319385,-518.41,0.00029863,2]
[315096548,1708810319395,-584.76,0.00029863,2]
[315096549,1708810319405,-225.01763096,0.00029863,2]
[315096550,1708810319414,-546.0462376,0.00029863,2]
[315096551,1708810319425,-1088.17,0.00029863,2]
[315096552,1708810319435,-500.0,0.00029863,2]
[315096553,1708810319444,-706.22,0.00029863,2]
[315096554,1708810319453,-703.51,0.00029863,2]
[315096555,1708810319463,-653.11,0.00029863,2]
[315096556,1708810319472,-811.6,0.00029863,2]
[315096557,1708810319481,-500.0,0.00029863,2]
[315096558,1708810319491,-1095.43,0.00029863,2]
[315096559,1708810319500,-500.0,0.00029863,2]
[315096560,1708810319509,-618.19,0.00029863,2]
[315096561,1708810319519,-2081.06,0.00029863,2]
[315096562,1708810319527,-1162.71,0.00029863,2]
[315096563,1708810319536,-943.46,0.00029863,2]
[315096564,1708810319545,-1409.4,0.00029863,2]
[315096565,1708810319555,-500.0,0.00029863,2]
[315096566,1708810319564,-500.0,0.00029863,2]
[315096567,1708810319573,-500.0,0.00029863,2]
[315096568,1708810319582,-632.23,0.00029863,2]
[315096569,1708810319591,-500.0,0.00029863,2]
[315096570,1708810319600,-500.0,0.00029863,2]
[315096571,1708810319609,-150.0,0.00029864,2]
[315096572,1708810319618,-150.0,0.00029864,2]
[315096573,1708810319627,-150.0,0.00029864,2]
[315096574,1708810319637,-25447.0702445,0.00029866,2]
[315096575,1708810319647,-1071.3841488,0.00029866,2]
[315096576,1708810319657,-222.63920514,0.00029866,2]
[315096577,1708810319666,-793.7127414,0.00029866,2]
[315096578,1708810319676,-243402.59372325,0.00029878,2]
[315096579,1708810319685,-479219.35951847,0.0002988,2]
[315096580,1708810319694,-2032271.27623597,0.0002988,2]
[315096581,1708810320231,-20560.19242377,0.0002988,2]
[315096582,1708810320671,-710.0,0.00027095,2]
[315096583,1708810320683,-1956.78033564,0.00027396,2]
[315096584,1708810320695,-1100.62,0.00027397,2]
[315096585,1708810320705,-1100.62,0.00027671,2]
[315096586,1708810320717,-500.0,0.00028767,2]
[315096587,1708810320728,-575.65,0.00029041,2]
[315096588,1708810320738,-500.0,0.00029041,2]
[315096589,1708810320747,-575.65,0.00029315,2]
[315096590,1708810320758,-500.0,0.00029315,2]
[315096591,1708810320769,-575.65,0.00029589,2]
[315096592,1708810320780,-500.0,0.00029589,2]
[315096593,1708810320791,-575.65,0.00029863,2]
[315096594,1708810320802,-500.0,0.00029863,2]
[315096595,1708810320814,-654769.5400664,0.0002988,2]
[315096596,1708810320823,-829560.81842214,0.0002988,2]
[315096597,1708810320836,-562794.49282232,0.0002988,2]
[315096598,1708810320848,-28945.3656423,0.0002988,2]
[315096599,1708810320860,-33438.50101966,0.0002988,2]
[315096600,1708810320978,-784.3051304,0.0002988,2]
[315096601,1708810321989,-536.77971629,0.000265,2]
[315096602,1708810322001,-955.0,0.00027035,2]
[315096603,1708810322012,-500.0,0.00027397,2]
[315096604,1708810322022,-334.00036464,0.00027671,2]
[315096605,1708810322040,-165.99963536,0.00027671,2]
[315096606,1708810322050,-175.70048055,0.00027945,2]
[315096607,1708810322071,-924.91951945,0.00027945,2]
[315096608,1708810322080,-500.0,0.00027945,2]
[315096609,1708810322090,-662.37651266,0.00028219,2]
[315096610,1708810322124,-150.0,0.00027397,2]
[315096611,1708810322135,-438.24348734,0.00028219,2]
[315096612,1708810322145,-500.0,0.00028219,2]
[315096613,1708810322154,-1100.62,0.00028493,2]
[315096614,1708810322164,-1100.62,0.00028767,2]
[315096615,1708810322175,-1100.62,0.00029041,2]
[315096616,1708810322185,-542.45074764,0.00029315,2]
[315096620,1708810444550,202.0,0.00022298,2]
[315096638,1708811432371,-350.26,0.00022736,2]
[315096639,1708811432381,-405.9,0.00024487,2]
[315096640,1708811432391,-200.0,0.00024535,2]
[315096641,1708811432401,-1214.03,0.0002456,2]
[315096642,1708811432411,-195.602457,0.00024649,2]
[315096643,1708811432427,-50.897543,0.00024649,2]
[315096644,1708811432437,-250.0,0.00024658,2]
[315096645,1708811432446,-246.5,0.00024716,2]
[315096646,1708811432672,-121.23342104,0.00024765,2]
[315096647,1708811432684,-5958.5,0.00024765,2]
[315096648,1708811432697,-1502.28437207,0.00024765,2]
[315096649,1708811432708,-5952.91433565,0.00024765,2]
[315096650,1708811432733,-1008.11171313,0.00024765,2]
[315096651,1708811432753,-1101.97615811,0.00024765,2]
[315096652,1708811432763,-246.5,0.00024784,2]
[315096653,1708811432773,-246.5,0.00024852,2]
[315096654,1708811432782,-167.88133315,0.00024898,2]
[315096655,1708811432792,-246.5,0.00024919,2]
[315096656,1708811432801,-246.5,0.00024987,2]
[315096657,1708811432810,-1422.72529536,0.00024998,2]
[315096658,1708811432821,-387.12579455,0.00024998,2]
[315096659,1708811432834,-348.30420545,0.00024998,2]
[315096660,1708811432844,-265.23102607,0.00024999,2]
[315096662,1708811432853,-1250.0,0.00025,3]
[315096664,1708811432863,-350.26,0.00025,2]
[315096665,1708811432872,-246.5,0.00025054,2]
[315096666,1708811432882,-246.5,0.00025122,2]
[315096667,1708811432892,-1852.42,0.00025172,2]
[315096668,1708811432901,-246.5,0.0002519,2]
[315096669,1708811432910,-782.1,0.00025214,2]
[315096670,1708811432920,-246.5,0.00025257,2]
[315096671,1708811432930,-150.0,0.00025288,2]
[315096672,1708811432940,-250.0,0.00025291,2]
[315096673,1708811432950,-499.99,0.00025291,2]
[315096674,1708811432959,-354.22,0.00025291,2]
[315096675,1708811432969,-243.94,0.00025292,2]
[315096676,1708811432979,-246.5,0.00025325,2]
[315096677,1708811432989,-172.8,0.00025325,2]
[315096678,1708811432999,-150.0,0.00025338,2]
[315096679,1708811433009,-343.55,0.00025352,2]
[315096680,1708811433019,-944.06075206,0.00025374,2]
[315096681,1708811433032,-246.5,0.00025392,2]
[315096682,1708811433042,-246.5,0.0002546,2]
[315096683,1708811433051,-944.06075206,0.0002547,2]
[315096684,1708811433061,-246.5,0.00025528,2]
[315096685,1708811433070,-10373.75,0.00025553,2]
[315096686,1708811433079,-246.5,0.00025595,2]
[315096687,1708811433090,-292.44,0.000256,2]
[315096688,1708811433099,-246.5,0.00025663,2]
[315096689,1708811433109,-757.43175713,0.00025669,2]
[315096690,1708811433119,-1000.0,0.00025727,2]
[315096691,1708811433128,-479.47353858,0.00025727,2]
[315096692,1708811433138,-246.5,0.0002573,2]
[315096693,1708811433148,-246.5,0.00025798,2]
[315096694,1708811433158,-165.63253244,0.00025825,2]
[315096695,1708811433167,-155.0,0.00025826,2]
[315096696,1708811433179,-309849.7388,0.00025827,2]
[315096697,1708811433189,-253.2449,0.00025827,2]
[315096698,1708811433198,-93190.9611,0.00025827,2]
[315096699,1708811433207,-259.54,0.00025829,2]
[315096700,1708811433217,-3683.1088,0.00025854,2]
[315096701,1708811433227,-246.5,0.00025866,2]
[315096702,1708811433237,-170.26,0.00025912,2]
[315096703,1708811433246,-246.5,0.00025933,2]
[315096704,1708811433256,-827.2,0.00025973,2]
[315096705,1708811433265,-150.0,0.00026079,2]
[315096706,1708811433277,-1214.03,0.00026204,2]
[315096707,1708811433287,-1057.26851131,0.00026286,5]
[315096708,1708811433296,-448.61,0.0002635,2]
[315096709,1708811433306,-207.631,0.00026362,2]
[315096710,1708811433316,-878.5219,0.00026362,2]
[315096711,1708811433325,-2347.75211165,0.00026462,2]
[315096712,1708811433334,-1741.91759443,0.00026462,2]
[315096713,1708811433344,-1500.52001965,0.00026462,2]
[315096714,1708811433353,-8674.95862834,0.00026462,2]
[315096715,1708811433363,-202.54034927,0.00026798,2]
[315096716,1708811433373,-5969.72810295,0.00026798,2]
[315096717,1708811433382,-153.64,0.00026886,2]
[315096718,1708811433392,-340.5,0.00026911,2]
[315096719,1708811433401,-479.47353851,0.00026942,3]
[315096720,1708811433412,-1300.0,0.00027,3]
[315096721,1708811433422,-5969.72810295,0.00027068,2]
[315096722,1708811433432,-202.54034921,0.0002707,2]
[315096723,1708811433442,-259.54,0.0002712,2]
[315096724,1708811433452,-49036.0,0.00027123,2]
[315096725,1708811433462,-493.0,0.00027141,2]
[315096726,1708811433472,-177.0,0.00027141,2]
[315096727,1708811433482,-510.894,0.00027197,2]
[315096728,1708811433492,-20700.8054393,0.00027197,2]
[315096729,1708811433818,-739.84194891,0.00027197,2]
[315096730,1708811433833,-4293.71305142,0.00027197,2]
[315096731,1708811433878,-556.58,0.00027197,2]
[315096732,1708811433891,-1774.05043865,0.00027197,2]
[315096733,1708811433902,-1248.31282495,0.00027197,2]
[315096734,1708811433915,-3531.24416795,0.00027197,2]
[315096735,1708811433930,-3494.22765723,0.00027197,2]
[315096745,1708811438351,-703.06376497,0.00027197,2]
[315096746,1708811438373,-24642.40690662,0.00027197,2]
[315096747,1708811438382,-2500.0,0.00027197,2]
[315096748,1708811438392,-350.26,0.00027264,2]
[315096749,1708811438402,-150.0,0.00027294,2]
[315096750,1708811438412,-10876.59902514,0.00027297,2]
[315096751,1708811438427,-8969.08620021,0.00027297,2]
[315096752,1708811438439,-154.31477465,0.00027297,2]
[315096753,1708811438448,-99.26191804,0.00027297,2]
[315096754,1708811438470,-331.99314566,0.00027297,2]
[315096755,1708811438502,-925.30673529,0.00027297,2]
[315096756,1708811438520,-1195.43925594,0.00027297,2]
[315096757,1708811438557,-977.01826793,0.00027297,2]
[315097041,1708811441848,-1125.32,0.00027083,2]
[315097042,1708811441858,-1470.98067714,0.00027297,2]
[315097043,1708811441868,-2517.79941932,0.00027297,2]
[315097045,1708811441922,-421.57,0.00027297,2]
[315097048,1708811441933,-3119.62879999,0.00027297,2]
[315097214,1708811443466,-1904.08075492,0.00026462,2]
[315097216,1708811443476,-4308.66150144,0.00027297,2]
[315097386,1708811445215,-1114.79957654,0.00027297,2]
[315097390,1708811445237,-1537.09804556,0.00027297,2]
[315097404,1708811445366,-4851.06539015,0.00027297,2]
[315097406,1708811445377,-677.34358808,0.00027297,2]
[315097513,1708811446424,-1450.16783378,0.00027297,2]
[315097527,1708811446570,-3038.82060904,0.00027297,2]
[315097783,1708812631613,-338.12,0.00022944,2]
[315097784,1708812631623,-203.0,0.00023838,2]
[315097785,1708812631634,-8.88,0.0002387,2]
[315097788,1708812631946,-524.24430986,0.0002387,2]
[315097790,1708812631955,-166.27220542,0.0002458,2]
[315097792,1708812631964,-289.43198589,0.00024608,2]
[315097794,1708812631975,-1042.40023561,0.00024608,2]
[315097800,1708812632021,-499.2746785,0.00024608,2]
[315097802,1708812632030,-184.74,0.00024659,2]
[315097804,1708812632039,-281.24644805,0.0002468,2]
[315097806,1708812632049,-2558.02,0.00024708,2]
[315097808,1708812632058,-250.0,0.00024716,2]
[315097810,1708812632067,-391.05,0.00024729,2]
[315097811,1708812632076,-150.0,0.00024733,2]
[315097814,1708812632085,-937.76,0.00024742,2]
[315097816,1708812632096,-150.0,0.00024765,2]
[315097818,1708812632106,-3063.13,0.00024766,2]
[315097820,1708812632115,-1852.42,0.00024766,2]
[315097821,1708812632124,-2395.29,0.00024766,2]
[315097823,1708812632134,-150.99,0.00024766,2]
[315097824,1708812632143,-861.76,0.00024768,2]
[315097825,1708812632151,-250.0,0.00024777,2]
[315097826,1708812632161,-230.24,0.00024814,2]
[315097827,1708812632170,-1051.72,0.00024826,2]
[315097828,1708812632179,-311.05,0.0002487,2]
[315097829,1708812632187,-500.0,0.00024936,2]
[315097830,1708812632196,-221.33,0.00024938,2]
[315097831,1708812632206,-1250.0,0.00025,3]
[315097832,1708812632215,-1560.52606163,0.00025,2]
[315097833,1708812632225,-172.8,0.0002508,2]
[315097834,1708812632234,-170.26,0.00025129,2]
[315097835,1708812632243,-399.0,0.00025158,2]
[315097836,1708812632252,-338.12,0.00025208,2]
[315097837,1708812632261,-165.67,0.00025562,2]
[315097838,1708812632270,-167.59,0.00025595,2]
[315097839,1708812632279,-150.0,0.000256,2]
[315097840,1708812632288,-354.86,0.000256,2]
[315097841,1708812632297,-317.13,0.000258,2]
[315097842,1708812632307,-150.0,0.00026079,2]
[315097843,1708812632316,-481.42,0.0002631,2]
[315097844,1708812632325,-818.54,0.00026388,3]
[315097845,1708812632334,-8210.66281183,0.00026398,2]
[315097850,1708812637524,-48076.95030266,0.00026398,2]
[315097851,1708812637535,-7167.1189,0.00026398,2]
[315097852,1708812637544,-1981.6063,0.00026398,2]
[315097853,1708812637553,-247.34,0.0002643,2]
[315097854,1708812637562,-8655.37684085,0.00026453,2]
[315097855,1708812637571,-1846.25063345,0.00026462,2]
[315097856,1708812637581,-1405.36382085,0.00026462,2]
[315097857,1708812637590,-1051.72,0.0002647,2]
[315097858,1708812637600,-151.022506,0.00026498,3]
[315097859,1708812637609,-151.022506,0.00026498,3]
[315097860,1708812637619,-151.022506,0.00026498,3]
[315097861,1708812637629,-151.022506,0.00026498,3]
[315097862,1708812637638,-151.022506,0.00026498,3]
[315097863,1708812637647,-151.022506,0.00026498,3]
[315097864,1708812637657,-151.022506,0.00026498,2]
[315097865,1708812637666,-151.022506,0.00026498,3]
[315097866,1708812637676,-151.022506,0.00026498,3]
[315097867,1708812637685,-157.022506,0.00026498,3]
[315097868,1708812637695,-157.022506,0.00026498,2]
[315097869,1708812637704,-157.022506,0.00026498,2]
[315097870,1708812637714,-157.022506,0.00026498,3]
[315097871,1708812637724,-157.022506,0.00026498,3]
[315097872,1708812637735,-157.022506,0.00026498,2]
[315097873,1708812637744,-151.022506,0.00026498,3]
[315097874,1708812637754,-359.6051539,0.00026498,3]
[315097875,1708812637763,-11879.615,0.00026498,2]
[315097876,1708812637773,-1000.0,0.00026498,2]
[315097877,1708812637782,-2500.0,0.00026498,2]
[315097878,1708812637791,-5000.0,0.000265,2]
[315097879,1708812637800,-151.26368541,0.000265,2]
[315097880,1708812637810,-166.27220541,0.00026552,2]
[315097881,1708812637820,-479.94181674,0.00026552,2]
[315097882,1708812637829,-230.58774355,0.00026597,2]
[315097883,1708812637840,-8688.89086933,0.00026598,2]
[315097884,1708812637869,-12730.25148246,0.00026598,2]
[315097885,1708812639751,-1438.16453057,0.00026598,2]
[315097886,1708812639764,-3430.54084153,0.00026598,2]
[315097887,1708812639776,-469.03921207,0.00026598,2]
[315097888,1708812639787,-652.69310717,0.00026598,2]
[315097889,1708812639798,-13193.20245795,0.00026598,2]
[315097890,1708812639809,-8289.28570744,0.00026598,2]
[315097923,1708812640150,-597.32,0.00026598,2]
[315097931,1708812640209,-11448.48386588,0.00026598,2]
[315097938,1708812640267,-409.96294878,0.00026598,2]
[315097945,1708812640325,-1719.37240304,0.00026598,2]
[315097953,1708812640381,-920.69902626,0.00026598,2]
[315097955,1708812640393,-2427.92306552,0.00026598,2]
[315097957,1708812640404,-68415.07455898,0.00026598,2]
[315098023,1708812641041,-536.77971627,0.00026552,2]
[315098025,1708812641051,-85.64234889,0.00026598,2]
[315098030,1708812641092,-4425.1151401,0.00026598,2]
[315098150,1708812642520,-3225.33400049,0.00026598,2]
[315098152,1708812642532,-13082.39757958,0.00026598,2]
[315098154,1708812642544,-4160.4117614,0.00026598,2]
[315098170,1708812642691,-397.21846895,0.00026598,2]
[315098173,1708812642704,-455.6514322,0.00026598,2]
[315098175,1708812642717,-11224.55982574,0.00026598,2]
[315098177,1708812642727,-151.022506,0.00026598,3]
[315098179,1708812642738,-151.022506,0.00026598,3]
[315098181,1708812642748,-151.022506,0.00026598,3]
[315098183,1708812642757,-64074.38672011,0.000266,4]
[315098185,1708812642769,-749.52352628,0.000266,4]
[315098188,1708812642784,-13114.00684031,0.000266,4]
[315098190,1708812642800,-14771.94254265,0.000266,4]
[315098192,1708812642812,-218647.8832438,0.000266,4]
[315098195,1708812642825,-350205.82913233,0.000266,4]
[315098196,1708812642834,-363.62100346,0.000266,2]
[315098199,1708812642844,-407824.02615765,0.000266,4]
[315098512,1708812645765,-730.95,0.00026398,2]
[315098514,1708812645774,-23273.93208724,0.000266,4]
[315098516,1708812645786,-27593.50280268,0.000266,4]
[315098518,1708812645799,-7387.76236101,0.000266,4]
[315098522,1708812645822,-7353.1344418,0.000266,4]
[315098524,1708812645834,-2032.84581834,0.000266,4]
[315098903,1708813324439,203.0,0.00021838,2]
[315098904,1708813336648,200.39339358,0.00021729,2]
[315098905,1708813734592,1075.373534,0.0002169,2]
[315098919,1708813834830,-343.4,0.0002296,2]
[315098920,1708813834839,-192.58282484,0.000237,2]
[315098921,1708813834848,-731.1,0.00024535,2]
[315098922,1708813834857,-66.21970466,0.00024543,2]
[315098923,1708813835046,-83.78029534,0.00024543,2]
[315098924,1708813835056,-331.1879109,0.00024549,2]
[315098925,1708813835067,-562.2520891,0.00024549,2]
[315098926,1708813835076,-71.94938579,0.00024554,2]
[315098927,1708813835087,-244.53061421,0.00024554,2]
[315098928,1708813835097,-200.0,0.00024558,2]
[315098929,1708813835106,-310.59,0.00024559,2]
[315098930,1708813835115,-1004.11543877,0.00024567,2]
[315098931,1708813835127,-682.51456123,0.00024567,2]
[315098932,1708813835136,-141.48543877,0.0002457,2]
[315098933,1708813835152,-358.51456123,0.0002457,2]
[315098934,1708813835161,-230.45,0.00024571,2]
[315098935,1708813835171,-467.13,0.0002459,2]
[315098936,1708813835180,-108.25902316,0.00024605,2]
[315098937,1708813835192,-673.20097684,0.00024605,2]
[315098938,1708813835201,-128.70780316,0.0002463,2]
[315098950,1708813837696,-41.55219684,0.0002463,2]
[315098951,1708813837706,-490.24263041,0.00024631,2]
[315098952,1708813837718,-224.69736959,0.00024631,2]
[315098953,1708813837727,-2000.0,0.00024641,2]
[315098954,1708813837736,-150.0,0.00024657,2]
[315098955,1708813837745,-250.0,0.00024658,2]
[315098956,1708813837753,-250.0,0.00024658,2]
[315098957,1708813837762,-659.19149545,0.0002467,2]
[315098958,1708813837773,-6562.32770455,0.0002467,2]
[315098959,1708813837782,-250.0,0.00024686,2]
[315098960,1708813837791,-178.34,0.00024773,2]
[315098961,1708813837800,-451.07,0.00024856,2]
[315098962,1708813837809,-689.41,0.00024905,2]
[315098963,1708813837818,-151.06054166,0.00025029,2]
[315098964,1708813837828,-343.4,0.00025224,2]
[315098965,1708813837837,-165.64,0.00025281,2]
[315098966,1708813837846,-637.07,0.00025398,2]
[315098967,1708813837855,-170.99,0.00025446,2]
[315098968,1708813837864,-230.45,0.00025799,2]
[315098969,1708813837873,-151.39,0.00025924,2]
[315098970,1708813837883,-1500.56,0.00026,2]
[315098998,1708813837892,-150.0,0.00026079,2]
[315099002,1708813838216,-893.44,0.00026192,2]
[315099004,1708813838225,-7505.59429458,0.000262,2]
[315099006,1708813838233,-269.56,0.000262,2]
[315099008,1708813838242,-151.022506,0.00026297,3]
[315099010,1708813838251,-151.022506,0.00026297,3]
[315099012,1708813838260,-151.022506,0.00026297,3]
[315099014,1708813838269,-151.022506,0.00026297,3]
[315099016,1708813838279,-151.022506,0.00026297,3]
[315099018,1708813838288,-151.022506,0.00026297,3]
[315099020,1708813838298,-151.022506,0.00026297,3]
[315099022,1708813838310,-151.022506,0.00026297,3]
[315099024,1708813838319,-151.022506,0.00026297,3]
[315099026,1708813838328,-151.022506,0.00026297,3]
[315099028,1708813838337,-151.022506,0.00026297,3]
[315099030,1708813838348,-151.022506,0.00026297,3]
[315099032,1708813838357,-151.022506,0.00026297,3]
[315099034,1708813838367,-200.0,0.00026356,2]
[315099036,1708813838377,-1320.6,0.00026381,2]
[315099038,1708813838392,-1000.0,0.00026397,2]
[315099040,1708813838401,-2727.70331055,0.00026453,2]
[315099042,1708813838412,-3638.64022909,0.00026453,2]
[315099044,1708813838422,-2150.46918914,0.00026453,2]
[315099046,1708813838431,-4728.01528528,0.00026453,2]
[315099048,1708813838440,-361.07,0.0002646,2]
[315099050,1708813838449,-150.0,0.00026476,2]
[315099052,1708813838458,-156.19727004,0.00026496,2]
[315099054,1708813838467,-12399.46704742,0.00026497,2]
[315099065,1708813838552,-2183.19584611,0.00026497,2]
[315099067,1708813838564,-909.34558635,0.00026497,2]
[315099069,1708813838573,-2261.1631,0.00026498,2]
[315099071,1708813838582,-3326.2347,0.00026498,2]
[315099073,1708813838591,-481.23294551,0.00026498,2]
[315099075,1708813838607,-5179.5384,0.00026498,2]
[315099081,1708813838651,-2577.77406271,0.00026498,2]
[315099086,1708813838689,-293.3708706,0.00026498,2]
[315099088,1708813838700,-1697.05221973,0.00026498,2]
[315099308,1708813840878,-15128.99787117,0.00026498,2]
[315099317,1708813840959,-26101.87472575,0.00026498,2]
[315099321,1708813841055,-847.36200758,0.00026498,2]
[315099322,1708813841067,-1516.49816992,0.00026498,2]
[315099323,1708813841079,-272.2129998,0.00026498,2]
[315099324,1708813841137,-15584.0471149,0.00026498,2]
[315099325,1708813842749,-545.74999965,0.00026498,2]
[315099326,1708813842804,-5651.05519172,0.00026498,2]
[315099327,1708813842816,-1430.4,0.00026498,2]
[315099328,1708813842879,-2595.85,0.00026498,2]
[315099329,1708813842891,-1701.1239524,0.00026498,2]
[315099330,1708813842916,-373.5132,0.00026498,2]
[315099331,1708813842928,-3990.97001315,0.00026498,2]
[315099332,1708813842941,-3177.13435736,0.00026498,2]
[315099333,1708813842973,-2937.17592683,0.00026498,2]
[315099342,1708813845913,-1000.18527722,0.00026498,2]
[315099343,1708813845926,-1574.49978919,0.00026498,2]
[315099365,1708815031935,-466.9179,0.0002276,2]
[315099366,1708815031945,-185.30855858,0.0002276,2]
[315099367,1708815031955,-251.9997,0.0002286,2]
[315099368,1708815031964,-385.45,0.00023119,2]
[315099369,1708815031973,-730.58,0.00024464,2]
[315099370,1708815031982,-583.92,0.00024904,2]
[315099371,1708815031991,-157.13050076,0.00024905,2]
[315099372,1708815032001,-200.0,0.00024907,2]
[315099373,1708815032010,-250.0,0.0002493,2]
[315099374,1708815032020,-784.7,0.00024984,2]
[315099375,1708815032029,-445.66974713,0.00025,3]
[315099376,1708815032041,-804.33025287,0.00025,3]
[315099377,1708815032050,-732.66,0.00025005,2]
[315099378,1708815032059,-19.13638738,0.00025005,2]
[315099379,1708815032074,-229.34361262,0.00025005,2]
[315099380,1708815032084,-150.0,0.00025035,2]